bitfinex/quotes_ETHUSD_20250801
["timestamp","ask_amount","ask_price","bid_price","bid_amount"]
[1754082357129,8.2448,3554.0,3553.9,24.304235]
[1754082357329,8.2418,3554.0,3553.9,18.985137]
[1754082357527,13.68261643,3554.0,3553.6,3.0]
[1754082357694,0.1408,3553.8,3553.6,3.0]
[1754082357897,4.601,3553.7,3553.6,3.0]
[1754082358223,4.601,3553.7,3553.6,5.139274]
[1754082358425,4.601,3553.7,3553.6,3.0]
[1754082358728,4.601,3553.7,3553.2,3.226449]
[1754082358729,2.81412691,3553.5,3553.2,3.226449]
[1754082358948,2.81436451,3553.2,3553.1,0.002]
[1754082359289,2.95516451,3553.2,3553.1,0.002]
[1754082359436,4.21562853,3553.2,3553.1,0.002]
[1754082359624,6.44982853,3553.2,3553.1,0.002]
[1754082359803,3.63546402,3553.2,3553.1,0.002]
[1754082360224,11.05182853,3553.2,3553.1,0.002]
[1754082360425,11.05182853,3553.2,3552.7,0.002]
[1754082360426,3.36468137,3552.8,3552.7,0.002]
[1754082360643,8.58360859,3552.8,3552.7,0.002]
[1754082360823,10.38550859,3552.8,3552.7,0.002]
[1754082361023,10.81680859,3552.8,3552.7,0.002]
[1754082361731,1.8029,3553.0,3552.7,7.623901]
[1754082362047,6.761,3553.2,3552.9,2.81453191]
[1754082362259,4.598,3553.1,3552.7,0.4656]
[1754082362444,4.598,3553.1,3552.8,3.4054]
[1754082362758,6.761,3553.2,3553.0,23.076545]
[1754082362914,4.599,3553.1,3553.0,19.047942]
[1754082363116,6.761,3553.2,3552.9,20.315162]
[1754082363322,4.599,3553.1,3553.0,2.81445692]
[1754082363521,0.001,3553.6,3553.0,2.81445692]
[1754082363522,0.001,3553.6,3553.1,0.4636]
[1754082363819,0.001,3553.6,3553.1,3.0]
[1754082363820,4.597,3553.5,3553.1,3.0]
[1754082364135,4.597,3553.5,3553.0,2.72483276]
[1754082364136,4.597,3553.5,3553.4,3.459079]
[1754082364855,4.597,3553.5,3552.8,3.0]
[1754082365056,6.8312,3553.5,3552.9,2.81453893]
[1754082365364,6.8312,3553.5,3553.1,3.0]
[1754082365657,0.4313,3553.5,3553.1,3.553479]
[1754082365857,6.3979,3553.4,3553.1,3.553479]
[1754082366668,4.595,3553.4,3552.7,0.002]
[1754082366823,1.8029,3553.3,3552.8,4.93060612]
[1754082367019,4.591,3553.2,3552.9,3.0]
[1754082367444,4.591,3553.2,3553.0,2.122866]
[1754082368161,4.591,3553.2,3553.0,2.338]
[1754082368456,4.591,3553.2,3553.0,2.120318]
[1754082368853,6.3939,3553.2,3553.0,2.120318]
[1754082369241,0.001,3553.6,3553.3,9.809804]
[1754082369242,1.8039,3553.6,3553.3,9.809804]
[1754082369459,0.001,3553.6,3553.5,2.81412691]
[1754082369625,4.585,3553.6,3553.5,3.27772691]
[1754082369825,4.585,3553.6,3553.5,2.81412691]
[1754082370254,4.585,3553.6,3553.5,2.56412691]
[1754082370456,4.585,3553.6,3553.3,2.81421476]
[1754082370457,0.001,3553.6,3553.3,0.1408]
[1754082370670,4.585,3553.5,3553.4,13.91732253]
[1754082371449,0.001,3553.6,3553.5,2.81412691]
[1754082371763,4.585,3553.6,3553.4,2.81417637]
[1754082372074,4.585,3553.6,3553.3,0.1408]
[1754082372075,4.585,3553.6,3553.5,5.18623291]
[1754082372284,4.582,3553.6,3553.4,5.622094]
[1754082372583,4.582,3553.6,3553.1,2.81436847]
[1754082372584,2.81438228,3553.2,3552.8,0.1408]
[1754082372880,4.579,3553.1,3553.0,5.81452293]
[1754082373098,4.7198,3553.1,3552.9,5.81456863]
[1754082373309,4.7198,3553.1,3552.7,0.002]
[1754082373310,1.8029,3553.0,3552.7,0.002]
[1754082373604,2.81462267,3552.9,3552.7,0.002]
[1754082373745,4.578,3552.8,3552.7,0.002]
[1754082373948,6.8122,3552.8,3552.7,4.158723]
[1754082374197,6.5217,3552.8,3552.7,0.002]
[1754082374392,7.221068,3552.8,3552.7,0.002]
[1754082374886,6.5217,3552.8,3552.7,0.002]
[1754082375240,9.76768137,3552.8,3552.7,0.002]
[1754082375444,10.31768137,3552.8,3552.7,0.002]
[1754082375699,1.9437,3552.8,3552.7,0.002]
[1754082375989,6.5167,3552.8,3552.7,0.002]
[1754082376293,0.1408,3552.8,3552.7,11.110917]
[1754082376498,4.573,3552.8,3552.7,12.3807773]
[1754082376644,4.573,3552.8,3552.7,8.4894286]
[1754082376850,4.573,3552.8,3552.7,8.2074286]
[1754082377382,4.573,3552.8,3552.7,8.1761006]
[1754082377585,0.1408,3553.0,3552.9,20.33952615]
[1754082377744,4.7118,3553.0,3552.9,19.88952615]
[1754082378082,4.7108,3553.0,3552.9,16.38952615]
[1754082378281,0.1408,3553.0,3552.9,16.38952615]
[1754082378446,4.568,3553.0,3552.9,2.74158867]
[1754082378755,4.568,3553.0,3552.9,8.94148656]
[1754082378953,4.568,3553.0,3552.9,6.68824]
[1754082379153,6.7546,3553.0,3552.9,3.0]
[1754082379386,6.449,3553.0,3552.8,5.509045]
[1754082379588,6.449,3553.0,3552.8,4.967106]
[1754082379883,1.7402,3552.9,3552.7,0.002]
[1754082380084,3.50548137,3552.8,3552.7,0.002]
[1754082380247,3.95188137,3552.8,3552.7,0.002]
[1754082380449,5.69208137,3552.8,3552.7,0.002]
[1754082382079,10.25408137,3552.8,3552.7,0.002]
[1754082382280,11.6298404,3552.8,3552.7,0.002]
[1754082382807,3.25675903,3552.8,3552.7,0.002]
[1754082382962,9.25768137,3552.8,3552.7,0.002]
[1754082383163,9.70408137,3552.8,3552.7,0.002]
[1754082384407,10.25408137,3552.8,3552.7,0.002]
[1754082386967,10.25408137,3552.8,3552.6,0.002]
[1754082386968,3.3647606,3552.7,3552.6,0.002]
[1754082387229,0.55,3552.6,3550.5,0.21511716]
[1754082387515,2.81602883,3551.1,3550.5,0.21511716]
[1754082387667,7.92002883,3551.1,3550.5,0.21511716]
[1754082387969,7.92002883,3551.1,3549.9,0.002]
[1754082387970,10.10662883,3551.1,3550.4,3.0]
[1754082388167,10.10662883,3551.1,3550.3,2.81662825]
[1754082388168,3.70865677,3551.1,3550.0,0.4736]
[1754082388504,12.0750856,3551.1,3549.9,3.002]
[1754082388713,12.0750856,3551.1,3549.9,2.81892243]
[1754082388914,12.0750856,3551.1,3549.9,0.002]
[1754082389071,12.0750856,3551.1,3549.9,3.002]
[1754082389696,12.0750856,3551.1,3549.9,0.002]
[1754082389922,12.0750856,3551.1,3549.9,2.81896842]
[1754082390118,12.0750856,3551.1,3550.0,3.0]
[1754082390334,12.0750856,3551.1,3549.9,3.002]
[1754082390833,12.0750856,3551.1,3549.9,5.81895868]
[1754082391234,7.5210856,3551.1,3549.9,3.002]
[1754082391531,12.0740856,3551.1,3550.3,2.81664304]
[1754082391730,12.0740856,3551.1,3549.9,3.4756]
[1754082392236,12.0740856,3551.1,3550.2,2.81673191]
[1754082392832,12.0720856,3551.1,3550.2,2.81673191]
[1754082393036,4.549,3551.1,3550.0,9.59510364]
[1754082393344,4.549,3551.1,3550.7,2.81631589]
[1754082393694,4.549,3551.1,3550.5,3.29002683]
[1754082393898,9.10522883,3551.1,3550.1,3.0]
[1754082394157,9.65522883,3551.1,3550.2,3.2903301]
[1754082394297,9.65522883,3551.1,3550.5,2.81649551]
[1754082394503,6.8392,3551.1,3550.6,2.81641408]
[1754082394725,9.65522883,3551.1,3550.5,2.81648536]
[1754082395148,6.762,3551.2,3551.1,32.81602883]
[1754082395463,5.06524547,3552.7,3551.6,2.81555893]
[1754082395464,6.764,3552.5,3551.6,2.81555893]
[1754082395614,4.546,3552.4,3551.8,2.81541832]
[1754082395803,4.549,3552.3,3552.1,5.335744]
[1754082396001,4.549,3552.3,3552.2,20.9524388]
[1754082396252,6.764,3552.5,3552.4,2.81499831]
[1754082396417,11.318,3552.5,3552.4,2.81499831]
[1754082396614,11.318,3552.5,3552.4,3.28859831]
[1754082396615,6.764,3552.5,3552.4,3.28859831]
[1754082396852,11.317,3552.5,3552.4,3.28859831]
[1754082397064,11.317,3552.5,3552.3,2.81505824]
[1754082397271,11.317,3552.5,3552.2,0.1408]
[1754082397272,11.317,3552.5,3552.1,3.0]
[1754082397439,11.4578,3552.5,3552.4,2.81499831]
[1754082397822,11.4578,3552.5,3552.3,2.81505091]
[1754082398045,11.4578,3552.5,3552.4,2.81499831]
[1754082398739,11.4578,3552.5,3552.4,20.00915331]
[1754082399125,11.4578,3552.5,3552.4,30.18620631]
[1754082399328,6.9048,3552.5,3552.4,28.73230431]
[1754082399757,11.4528,3552.5,3552.4,26.42212431]
[1754082399955,11.4528,3552.5,3552.4,22.50542431]
[1754082400262,11.4528,3552.5,3552.4,22.50188031]
[1754082401177,11.4488,3552.5,3552.2,15.102492]
[1754082401386,11.4488,3552.5,3552.0,0.1408]
[1754082401387,1.7402,3552.4,3551.8,0.4736]
[1754082401667,0.1408,3552.1,3552.0,2.775101]
[1754082401874,4.6848,3552.1,3552.0,2.775101]
[1754082402037,4.6848,3552.1,3552.0,2.675489]
[1754082402626,4.6848,3552.1,3552.0,3.760252]
[1754082402837,4.6848,3552.1,3552.0,6.57556731]
[1754082402838,0.1408,3552.1,3552.0,6.57556731]
[1754082403125,0.1408,3552.1,3552.0,9.14273248]
[1754082403126,4.544,3552.1,3552.0,9.14273248]
[1754082403357,4.544,3552.1,3552.0,7.04916731]
[1754082403563,4.544,3552.1,3552.0,22.45017131]
[1754082403725,0.1408,3552.3,3552.0,20.55485231]
[1754082403926,4.538,3552.2,3552.1,12.34887205]
[1754082404152,4.538,3552.2,3552.1,12.82247205]
[1754082404752,4.538,3552.2,3552.1,20.69895605]
[1754082404968,4.538,3552.2,3552.1,23.69895605]
[1754082405142,4.538,3552.2,3552.1,21.85195605]
[1754082405343,0.1408,3552.3,3552.2,23.1282768]
[1754082405541,4.6748,3552.3,3552.2,23.1282768]
[1754082405745,4.6748,3552.3,3552.2,29.5489018]
[1754082406069,4.6748,3552.3,3552.2,28.6384688]
[1754082406267,6.764,3552.5,3552.4,2.81499831]
[1754082406431,11.296,3552.5,3552.4,32.81499831]
[1754082407134,6.764,3552.5,3552.4,32.81499831]
[1754082407333,11.296,3552.5,3552.4,28.93469131]
[1754082407569,6.764,3552.5,3552.4,31.39275231]
[1754082407867,6.764,3552.5,3552.4,38.98073107]
[1754082408031,11.294,3552.5,3552.4,40.08783107]
[1754082408752,11.294,3552.5,3552.4,12.95168631]
[1754082409072,11.294,3552.5,3552.4,6.642151]
[1754082409368,13.2331,3552.5,3552.4,7.151096]
[1754082409563,13.2331,3552.5,3552.4,9.96609431]
[1754082409865,13.2331,3552.5,3552.4,30.84514331]
[1754082409866,11.4318,3552.5,3552.4,30.84514331]
[1754082410229,0.001,3553.2,3553.1,2.81444372]
[1754082410556,4.528,3553.2,3553.1,29.60562735]
[1754082410755,4.529,3553.2,3553.1,47.24289399]
[1754082411771,4.529,3553.2,3553.1,9.78938372]
[1754082411987,4.529,3553.2,3553.1,3.0]
[1754082412135,7.68529554,3553.2,3553.1,3.0]
[1754082412466,6.4681,3553.2,3553.1,3.0]
[1754082413432,6.9368,3553.2,3552.6,2.81479782]
[1754082413768,2.81492566,3552.5,3552.1,0.002]
[1754082413977,4.525,3552.4,3552.2,3.0]
[1754082414273,0.1408,3552.2,3552.1,0.002]
[1754082414478,4.6678,3552.2,3552.1,5.603125]
[1754082414686,4.6678,3552.2,3552.1,6.668062]
[1754082415191,4.6678,3552.2,3552.1,5.816062]
[1754082415785,4.6678,3552.2,3552.1,5.226307]
[1754082415990,4.6678,3552.2,3552.1,3.002]
[1754082416599,4.6628,3552.2,3552.1,9.10926905]
[1754082416886,4.6628,3552.2,3552.1,17.72442405]
[1754082417399,4.6628,3552.2,3552.1,13.96979305]
[1754082417857,4.6628,3552.2,3552.1,21.23081205]
[1754082418186,4.6628,3552.2,3552.1,19.09782105]
[1754082418754,4.6628,3552.2,3552.1,29.80612805]
[1754082419157,1.7983,3553.0,3552.6,2.81483602]
[1754082419380,1.7983,3553.0,3552.7,3.0]
[1754082419566,10.262,3553.1,3552.8,19.47742709]
[1754082419567,4.6568,3552.9,3552.8,19.47742709]
[1754082419765,4.516,3552.9,3552.8,21.14157909]
[1754082419968,4.516,3552.9,3552.8,8.03140309]
[1754082420670,4.516,3552.9,3552.8,15.46260909]
[1754082421654,0.001,3553.2,3553.1,2.81444372]
[1754082421858,4.513,3553.2,3553.1,35.81444372]
[1754082422289,4.513,3553.2,3553.1,36.25534372]
[1754082422671,4.513,3553.2,3553.1,36.39614372]
[1754082423054,0.001,3553.2,3553.1,39.12097648]
[1754082423264,0.001,3553.2,3553.1,47.44817253]
[1754082424219,0.001,3553.2,3553.1,39.12097648]
[1754082424529,0.001,3553.2,3553.1,35.95524372]
[1754082424962,0.001,3553.2,3553.1,17.84961372]
[1754082425165,0.001,3553.2,3553.1,3.0]
[1754082425166,1.7993,3553.2,3553.1,3.0]
[1754082425415,0.001,3553.2,3553.1,12.38797372]
[1754082425714,4.511,3553.2,3553.1,12.96967372]
[1754082426002,4.511,3553.2,3553.1,36.39614372]
[1754082426297,0.001,3553.2,3553.1,36.39614372]
[1754082426518,4.511,3553.2,3553.1,36.39614372]
[1754082427168,4.511,3553.2,3553.1,8.64931872]
[1754082428000,4.511,3553.2,3553.1,14.37608972]
[1754082428467,4.511,3553.2,3553.1,10.60132672]
[1754082428672,6.9188,3553.2,3552.5,4.650511]
[1754082428867,0.1408,3552.8,3552.7,13.86677562]
[1754082429069,6.4451,3552.8,3552.7,16.86677562]
[1754082430017,0.001,3553.2,3553.1,19.84825772]
[1754082430188,4.505,3553.2,3553.1,18.75689772]
[1754082430388,4.6458,3553.2,3553.1,18.75689772]
[1754082431023,4.6438,3553.2,3553.1,18.72673472]
[1754082431526,0.1418,3553.2,3553.1,18.72673472]
[1754082431672,0.001,3553.2,3553.1,18.72673472]
[1754082431872,4.503,3553.2,3553.1,18.72673472]
[1754082432072,4.503,3553.2,3553.1,35.81444372]
[1754082432331,4.503,3553.2,3553.1,36.25534372]
[1754082433527,0.001,3553.2,3553.1,36.25534372]
[1754082433820,4.503,3553.2,3553.1,36.39614372]
[1754082433986,4.503,3553.2,3553.1,39.12097648]
[1754082434189,4.5,3553.2,3553.1,40.15687648]
[1754082435270,4.5,3553.2,3553.1,39.12097648]
[1754082438022,4.5,3553.2,3553.1,38.36716748]
[1754082438307,4.5,3553.2,3553.1,38.68007648]
[1754082438512,0.001,3553.2,3553.1,38.68007648]
[1754082439516,0.001,3553.2,3553.1,8.68007648]
[1754082439721,0.001,3553.2,3553.1,5.95524372]
[1754082439921,0.001,3553.2,3553.1,36.42584372]
[1754082440213,4.487,3553.2,3553.1,36.42584372]
[1754082440413,0.001,3553.2,3553.1,35.95524372]
[1754082440617,0.001,3553.2,3553.1,36.42584372]
[1754082440804,0.001,3553.2,3553.1,39.15067648]
[1754082441717,8.4976,3554.5,3554.4,32.81341435]
[1754082441915,12.9826,3554.5,3554.4,30.27764335]
[1754082442075,12.9826,3554.5,3554.4,24.06319535]
[1754082442281,12.9826,3554.5,3554.4,16.17721035]
[1754082442623,12.9826,3554.5,3554.4,12.09520935]
[1754082442790,12.9826,3554.5,3554.4,10.10502635]
[1754082443192,1.15145415,3554.7,3554.6,35.81325606]
[1754082443394,1.15145415,3554.7,3554.6,3.0]
[1754082443395,4.485,3554.7,3554.6,3.0]
[1754082443595,4.485,3554.7,3554.6,6.262231]
[1754082443927,4.485,3554.7,3554.6,5.410231]
[1754082444076,6.6606,3554.7,3554.6,10.47469206]
[1754082444276,6.6606,3554.7,3554.4,2.81339901]
[1754082444277,2.81337015,3554.5,3554.2,0.1408]
[1754082444476,0.1408,3554.3,3554.0,3.0]
[1754082444702,4.484,3554.2,3553.5,0.1408]
[1754082444902,2.1756,3554.4,3554.0,25.443019]
[1754082444903,4.6318,3554.1,3554.0,25.443019]
[1754082445103,4.6318,3554.1,3554.0,21.95077]
[1754082445316,6.3674,3554.1,3554.0,17.756908]
[1754082445498,6.3674,3554.1,3554.0,17.400453]
[1754082445698,6.3674,3554.1,3554.0,14.12282]
[1754082445877,6.3674,3554.1,3554.0,12.273902]
[1754082446215,6.3674,3554.1,3554.0,5.813731]
[1754082446418,6.3674,3554.1,3554.0,17.487231]
[1754082446816,6.8074,3554.1,3554.0,5.69051]
[1754082447115,6.8074,3554.1,3554.0,5.220301]
[1754082447331,7.48814,3554.1,3553.0,0.20737599]
[1754082447496,0.1408,3553.5,3553.3,2.81426083]
[1754082447700,4.485,3553.4,3553.3,8.97438883]
[1754082448096,6.6606,3553.4,3553.3,5.214037]
[1754082448295,6.6606,3553.4,3553.3,8.02832231]
[1754082448520,6.6606,3553.4,3553.3,5.81428531]
[1754082448723,6.6606,3553.4,3553.3,10.73701831]
[1754082449027,6.6606,3553.4,3553.3,8.98701831]
[1754082449427,6.6606,3553.4,3553.3,10.01262531]
[1754082449663,4.485,3553.4,3553.3,10.01262531]
[1754082449920,1.7356,3554.6,3554.1,2.81363134]
[1754082450122,0.1408,3554.2,3554.1,30.85989434]
[1754082450323,0.001,3554.9,3554.4,2.81341435]
[1754082450502,0.001,3554.9,3554.4,32.81341435]
[1754082450503,11.243,3554.5,3554.4,32.81341435]
[1754082450698,11.243,3554.5,3554.4,27.94229535]
[1754082451292,11.243,3554.5,3554.4,27.70177635]
[1754082451487,11.243,3554.5,3554.4,12.40634435]
[1754082451725,13.4186,3554.5,3554.3,3.0]
[1754082452026,0.1408,3554.3,3554.2,15.616722]
[1754082452224,0.1408,3554.3,3554.2,13.883133]
[1754082452402,2.3164,3554.3,3554.2,13.883133]
[1754082452603,2.3164,3554.3,3551.0,2.81806008]
[1754082452604,2.81357267,3554.2,3551.0,2.81806008]
[1754082452809,0.55,3554.0,3552.3,10.190212]
[1754082452994,7.29765183,3554.1,3552.3,10.190212]
[1754082452995,0.1408,3552.5,3552.3,6.120944]
[1754082453189,6.2406,3552.4,3552.3,6.120944]
[1754082453470,0.1408,3552.5,3552.3,6.120944]
[1754082453603,0.1408,3552.9,3552.5,2.81486587]
[1754082453804,4.504,3552.8,3552.3,2.95587755]
[1754082454115,4.504,3552.8,3552.4,30.0]
[1754082454312,4.504,3552.8,3552.7,2.8147606]
[1754082454517,4.504,3552.8,3552.7,16.3291276]
[1754082455322,4.504,3552.8,3552.7,18.6836856]
[1754082455740,4.504,3552.8,3552.5,3.28550911]
[1754082455741,0.1408,3552.9,3552.8,17.78397237]
[1754082455917,4.6458,3552.9,3552.8,14.969291]
[1754082456233,4.6458,3552.9,3552.8,13.31343]
[1754082456435,0.1408,3552.9,3552.8,19.12811137]
[1754082456648,4.6438,3552.9,3552.8,19.12811137]
[1754082457303,4.6418,3552.9,3552.8,24.10641237]
[1754082457503,4.6418,3552.9,3552.8,23.67699037]
[1754082457937,4.6418,3552.9,3552.8,6.46525]
[1754082458129,4.6418,3552.9,3552.8,3.0]
[1754082458440,6.3774,3552.9,3552.8,3.0]
[1754082458638,7.40744,3552.9,3552.5,3.0]
[1754082458940,0.1408,3552.6,3552.4,9.840442]
[1754082459138,0.1408,3552.6,3552.5,23.63652407]
[1754082459345,1.7356,3553.1,3552.5,23.63652407]
[1754082459346,1.7356,3553.1,3552.8,3.0]
[1754082459650,6.2316,3553.0,3552.5,6.721893]
[1754082459815,0.1408,3552.8,3552.6,5.81483708]
[1754082460018,0.1408,3552.8,3552.7,2.301607]
[1754082460207,0.1408,3552.8,3552.6,3.0]
[1754082460846,0.1408,3552.8,3552.7,3.0]
[1754082461058,0.1408,3552.8,3552.7,23.3039516]
[1754082461460,4.6338,3552.8,3552.7,23.3039516]
[1754082461661,4.6338,3552.8,3552.7,19.8703566]
[1754082461970,0.1408,3552.8,3552.7,19.8703566]
[1754082462126,1.7356,3553.8,3553.3,19.770178]
[1754082462328,0.1408,3553.4,3553.3,17.334678]
[1754082462579,0.1408,3553.4,3553.3,20.14896331]
[1754082462859,0.1408,3553.9,3553.7,2.81391997]
[1754082463059,4.494,3553.8,3553.7,26.45400597]
[1754082463279,0.1408,3553.9,3553.8,5.81388935]
[1754082463432,4.494,3553.9,3553.8,35.81388935]
[1754082463630,4.494,3553.9,3553.8,36.28448935]
[1754082464270,0.1408,3554.1,3554.0,2.813731]
[1754082464439,0.1408,3554.1,3554.0,27.233816]
[1754082464639,4.6318,3554.1,3554.0,23.006572]
[1754082464844,4.6318,3554.1,3554.0,2.886418]
[1754082465379,4.6318,3554.1,3554.0,10.88145]
[1754082465682,0.1408,3554.1,3554.0,16.695181]
[1754082465963,4.6318,3554.1,3554.0,16.695181]
[1754082466345,4.6318,3554.1,3554.0,18.864823]
[1754082467324,4.6318,3554.1,3554.0,27.885714]
[1754082467767,4.6318,3554.1,3554.0,18.135963]
[1754082467946,4.6318,3554.1,3554.0,16.992263]
[1754082468336,4.486,3554.1,3554.0,36.269831]
[1754082468558,4.486,3554.1,3554.0,38.008131]
[1754082469680,4.486,3554.1,3554.0,36.269831]
[1754082469970,4.486,3554.1,3554.0,19.378944]
[1754082470173,0.1408,3554.2,3554.1,5.81365183]
[1754082470475,6.76,3554.5,3554.4,35.81341435]
[1754082470677,11.245,3554.5,3554.4,35.81341435]
[1754082470971,11.3858,3554.5,3554.4,35.12483835]
[1754082471131,11.245,3554.5,3554.4,35.12483835]
[1754082471336,11.245,3554.5,3554.4,29.60468135]
[1754082471640,11.245,3554.5,3554.4,35.54226335]
[1754082471845,6.76,3554.5,3554.4,35.54226335]
[1754082472220,11.245,3554.5,3554.4,40.14619611]
[1754082472346,11.245,3554.5,3554.4,37.42136335]
[1754082472537,4.486,3554.5,3554.4,36.41031435]
[1754082472867,4.486,3554.5,3554.4,35.20441335]
[1754082473072,4.486,3554.5,3554.4,34.40117335]
[1754082473428,4.486,3554.5,3554.4,33.74524435]
[1754082474062,4.486,3554.5,3554.4,11.95982535]
[1754082474247,6.0847,3554.5,3554.4,8.808833]
[1754082474551,4.486,3554.5,3554.4,36.26951435]
[1754082474752,4.486,3554.5,3554.4,35.14364135]
[1754082475136,4.486,3554.5,3554.4,31.10864035]
[1754082475380,4.486,3554.5,3554.4,3.0]
[1754082475381,6.54738,3554.5,3554.4,3.0]
[1754082475584,6.68818,3554.5,3554.4,6.546668]
[1754082476084,6.68818,3554.5,3554.4,3.0]
[1754082476393,7.08048,3554.5,3554.4,3.0]
[1754082476885,6.68818,3554.5,3554.4,3.0]
[1754082477237,0.55,3554.4,3553.8,2.81388152]
[1754082477436,0.55,3554.4,3553.3,0.1408]
[1754082477437,0.55,3554.2,3553.3,0.1408]
[1754082477671,0.1408,3553.7,3553.6,6.231166]
[1754082477837,4.6248,3553.7,3553.6,6.231166]
[1754082478039,6.2235,3553.7,3553.6,6.231166]
[1754082478277,6.2235,3553.7,3553.6,9.04521372]
[1754082480277,6.2235,3553.7,3553.6,3.0]
[1754082480456,6.2235,3553.7,3553.6,10.108694]
[1754082480977,6.2235,3553.7,3553.6,3.0]
[1754082481281,7.23815,3553.7,3553.0,0.002]
[1754082481485,0.1408,3553.1,3553.0,0.002]
[1754082481689,4.6248,3553.1,3553.0,2.427717]
[1754082481893,4.6248,3553.1,3553.0,5.24223993]
[1754082482048,4.6248,3553.1,3553.0,8.24223993]
[1754082482237,4.6248,3553.1,3553.0,5.427717]
[1754082482439,5.24715,3553.1,3553.0,0.002]
[1754082482753,10.60259372,3553.1,3553.0,0.002]
[1754082483997,5.72629372,3553.1,3553.0,0.002]
[1754082484202,6.7735,3553.1,3553.0,0.002]
[1754082484576,2.2895,3553.1,3553.0,0.002]
[1754082484958,0.1408,3553.1,3553.0,3.4581]
[1754082485162,5.1748,3553.1,3553.0,2.81652293]
[1754082485362,5.1748,3553.1,3553.0,0.002]
[1754082485775,6.7735,3553.1,3553.0,0.002]
[1754082486201,2.96685,3553.1,3553.0,0.002]
[1754082486499,10.65859372,3553.1,3553.0,0.002]
[1754082487162,10.26629372,3553.1,3553.0,0.002]
[1754082487368,7.45085,3553.1,3553.0,0.002]
[1754082487907,10.26529372,3553.1,3553.0,0.002]
[1754082488213,14.15759372,3553.1,3553.0,0.002]
[1754082489279,13.76529372,3553.1,3553.0,0.002]
[1754082489667,14.15759372,3553.1,3553.0,0.002]
[1754082490068,10.95085,3553.1,3553.0,0.002]
[1754082490268,13.76529372,3553.1,3553.0,0.002]
[1754082491179,14.15759372,3553.1,3553.0,0.002]
[1754082492285,14.15759372,3553.1,3553.0,1e-08]
[1754082496117,3.3651568,3552.2,3552.1,0.002]
[1754082496406,3.36547384,3551.8,3551.7,0.002]
[1754082496613,7.99127384,3551.8,3551.7,0.002]
[1754082496822,0.6908,3551.8,3551.7,0.002]
[1754082497002,7.99127384,3551.8,3551.7,0.002]
[1754082497170,10.44310122,3551.8,3551.7,0.002]
[1754082498270,4.30540122,3551.8,3551.7,0.002]
[1754082498470,7.99127384,3551.8,3551.7,0.002]
[1754082498705,7.99127384,3551.8,3551.7,0.4734]
[1754082498976,7.99127384,3551.8,3551.7,0.002]
[1754082499589,0.6908,3551.8,3551.7,0.002]
[1754082499814,5.1758,3551.8,3551.7,0.4734]
[1754082500123,5.1758,3551.8,3551.7,0.002]
[1754082500124,10.16155384,3551.8,3551.7,0.002]
[1754082502314,7.99227384,3551.8,3551.7,0.002]
[1754082502501,9.64497384,3551.8,3551.7,0.002]
[1754082503617,10.03727384,3551.8,3551.7,1e-08]
[1754082503790,10.03727384,3551.8,3551.0,0.002]
[1754082503791,3.36602883,3551.1,3551.0,0.002]
[1754082503994,7.99182883,3551.1,3551.0,0.002]
[1754082504313,9.64452883,3551.1,3551.0,0.002]
[1754082504526,7.99282883,3551.1,3551.0,0.002]
[1754082504677,9.64552883,3551.1,3551.0,0.002]
[1754082505020,11.0569456,3551.1,3551.0,0.002]
[1754082505529,7.99282883,3551.1,3551.0,0.4734]
[1754082505980,7.94282883,3551.1,3551.0,0.4734]
[1754082506520,7.94282883,3551.1,3551.0,0.002]
[1754082507083,3.45682883,3551.1,3551.0,0.002]
[1754082507283,7.94282883,3551.1,3551.0,0.002]
[1754082507581,6.1854056,3551.1,3551.0,0.002]
[1754082507779,10.6714056,3551.1,3551.0,0.002]
[1754082508100,4.5327056,3551.1,3551.0,0.002]
[1754082508415,9.0187056,3551.1,3551.0,0.002]
[1754082508582,7.94282883,3551.1,3551.0,0.4734]
[1754082508782,11.44282883,3551.1,3551.0,0.002]
[1754082510127,11.44282883,3551.1,3551.0,0.4734]
[1754082510283,3.6408,3551.1,3551.0,25.724872]
[1754082510623,8.1258,3551.1,3551.0,18.21978913]
[1754082511130,8.6758,3551.1,3551.0,9.224882]
[1754082511333,8.6758,3551.1,3551.0,12.04099013]
[1754082511538,3.6408,3551.1,3551.0,7.90470813]
[1754082511826,8.1268,3551.1,3551.0,14.32859155]
[1754082511997,8.1258,3551.1,3551.0,14.32859155]
[1754082512626,8.6758,3551.1,3551.0,3.002]
[1754082512788,13.14452883,3551.1,3551.0,0.002]
[1754082512987,13.53682883,3551.1,3551.0,0.002]
[1754082513424,13.14452883,3551.1,3551.0,0.002]
[1754082513643,15.02216996,3551.1,3551.0,0.002]
[1754082513948,8.88446996,3551.1,3551.0,0.002]
[1754082514092,8.88446996,3551.1,3551.0,0.4734]
[1754082514093,11.49182883,3551.1,3551.0,0.4734]
[1754082514643,11.49182883,3551.1,3551.0,0.002]
[1754082515235,20.20182883,3551.1,3551.0,0.002]
[1754082515427,19.80952883,3551.1,3551.0,0.002]
[1754082515793,19.20952883,3551.1,3551.0,0.002]
[1754082515987,21.41207584,3551.1,3551.0,0.002]
[1754082518225,13.07182883,3551.1,3551.0,0.002]
[1754082518406,17.55682883,3551.1,3551.0,0.002]
[1754082518712,17.55682883,3551.1,3551.0,0.4734]
[1754082518915,13.07182883,3551.1,3551.0,0.002]
[1754082519238,17.55682883,3551.1,3551.0,0.002]
[1754082520047,9.7058,3551.1,3551.0,24.64848113]